bitfinex/quotes_SOLUSD_20260302
["timestamp","ask_amount","ask_price","bid_price","bid_amount"]
[1772432506864,11.98885397,83.411,83.382,2.42722054]
[1772432507259,2.50854093,83.41,83.382,2.42722054]
[1772432508059,2.50854093,83.41,83.36,11.29566715]
[1772432508060,2.50854093,83.399,83.361,2.44624399]
[1772432508264,2.50854093,83.379,83.347,2.44624399]
[1772432508680,2.50854093,83.377,83.347,2.44624399]
[1772432508979,2.50854093,83.377,83.35,11.29566715]
[1772432509683,2.50854093,83.377,83.35,13.74191114]
[1772432509880,11.99357144,83.378,83.351,2.44624399]
[1772432510071,11.99304133,83.382,83.351,2.44624399]
[1772432510961,14.50158226,83.382,83.351,2.44624399]
[1772432511159,14.50158226,83.382,83.352,11.9973126]
[1772432512789,14.50158226,83.382,83.352,14.44355659]
[1772432513366,2.50854093,83.381,83.352,2.44624399]
[1772432513566,2.50854093,83.379,83.352,2.44624399]
[1772432514591,2.50854093,83.379,83.34,11.29566715]
[1772432514779,2.50854093,83.369,83.34,23.2946581]
[1772432515291,14.50346569,83.369,83.341,2.44624399]
[1772432515983,11.99429218,83.373,83.341,2.44624399]
[1772432516867,11.29566715,83.39,83.361,2.44624399]
[1772432517067,2.50854093,83.388,83.361,2.44624399]
[1772432517267,2.50854093,83.388,83.351,2.44624399]
[1772432517881,2.50854093,83.379,83.345,11.99826658]
[1772432518091,2.50854093,83.379,83.34,11.29566715]
[1772432518268,2.50854093,83.369,83.333,12.000048]
[1772432518477,2.50854093,83.359,83.322,2.44624399]
[1772432519189,13.80420808,83.35,83.322,2.44624399]
[1772432519396,2.50854093,83.339,83.304,2.44624399]
[1772432519575,2.50854093,83.339,83.305,12.00408138]
[1772432519775,41.98757167,83.358,83.282,2.44624399]
[1772432519776,2.50854093,83.319,83.282,2.44624399]
[1772432520192,2.50854093,83.319,83.29,11.29566715]
[1772432520398,2.50854093,83.319,83.282,2.44624399]
[1772432520594,2.50854093,83.319,83.29,11.29566715]
[1772432520794,2.50854093,83.319,83.282,2.44624399]
[1772432520795,2.50854093,83.309,83.27,2.54624399]
[1772432520998,2.50854093,83.309,83.28,11.29566715]
[1772432521191,2.50854093,83.307,83.271,12.00898271]
[1772432521381,2.50854093,83.279,83.24,11.39566715]
[1772432521579,2.50854093,83.279,83.25,11.29566715]
[1772432522297,2.50854093,83.279,83.241,12.01331074]
[1772432522498,2.50854093,83.279,83.24,0.1]
[1772432522499,11.29566715,83.27,83.24,11.39566715]
[1772432522797,2.50854093,83.269,83.24,0.1]
[1772432523174,2.50854093,83.259,83.24,0.1]
[1772432523374,12.01085781,83.258,83.24,0.1]
[1772432523593,2.50854093,83.259,83.24,0.1]
[1772432524876,2.50854093,83.268,83.24,0.1]
[1772432525076,2.50854093,83.268,83.24,11.39566715]
[1772432525293,2.50854093,83.279,83.24,11.39566715]
[1772432525614,11.29566715,83.28,83.22,11.29566715]
[1772432525615,2.50854093,83.249,83.22,11.29566715]
[1772432525894,2.50854093,83.249,83.229,1e-08]
[1772432526404,2.50854093,83.239,83.216,13.01878255]
[1772432527075,2.50854093,83.249,83.216,25.03566984]
[1772432527280,14.52084152,83.248,83.216,15.46502654]
[1772432527498,11.29566715,83.24,83.216,13.01878255]
[1772432527704,13.80420808,83.24,83.216,13.01878255]
[1772432527878,14.52084152,83.248,83.22,11.29566715]
[1772432528084,12.01230059,83.248,83.22,11.29566715]
[1772432528275,2.50854093,83.247,83.216,13.01878255]
[1772432528475,12.01230059,83.248,83.216,13.01878255]
[1772432528476,2.50854093,83.239,83.216,13.01878255]
[1772432528677,2.50854093,83.239,83.22,11.29566715]
[1772432528885,2.50854093,83.239,83.216,13.01878255]
[1772432529481,11.29566715,83.23,83.211,1.02306185]
[1772432529685,13.80420808,83.23,83.211,1.02306185]
[1772432530106,12.01374372,83.238,83.211,1.02306185]
[1772432530282,2.50854093,83.237,83.211,1.02306185]
[1772432530483,11.29566715,83.23,83.211,1.02306185]
[1772432530691,2.50854093,83.229,83.19,11.29566715]
[1772432530894,2.50854093,83.209,83.18,11.29566715]
[1772432531083,11.29566715,83.21,83.181,2.44624399]
[1772432531284,2.50854093,83.229,83.191,2.44624399]
[1772432531501,2.50854093,83.227,83.191,2.44624399]
[1772432531684,2.50854093,83.219,83.18,13.74191114]
[1772432531998,2.50854093,83.199,83.17,11.29566715]
[1772432532200,2.50854093,83.199,83.161,2.44624399]
[1772432532385,2.50854093,83.208,83.18,11.29566715]
[1772432533204,11.29566715,83.24,83.201,2.44624399]
[1772432533205,12.01448386,83.233,83.201,2.44624399]
[1772432533405,11.29566715,83.26,83.221,2.44624399]
[1772432533703,42.00722523,83.319,83.24,11.29566715]
[1772432533893,11.29566715,83.28,83.25,13.74191114]
[1772432534202,11.29566715,83.26,83.189,30.05197988]
[1772432534407,11.29566715,83.24,83.201,2.51999357]
[1772432534881,11.29566715,83.24,83.21,11.29566715]
[1772432535086,11.29566715,83.25,83.221,2.51999357]
[1772432536282,12.0121563,83.249,83.221,2.51999357]
[1772432536501,14.53780793,83.249,83.211,2.51999357]
[1772432536709,14.53780793,83.249,83.212,2.51999357]
[1772432537300,12.0121563,83.249,83.212,2.51999357]
[1772432537498,12.0121563,83.249,83.211,12.01764189]
[1772432537499,2.43548571,83.286,83.241,2.61428473]
[1772432537685,2.43548571,83.286,83.25,11.29566715]
[1772432538001,42.02286043,83.288,83.22,11.29566715]
[1772432538002,2.43548571,83.259,83.22,11.29566715]
[1772432538209,42.02286043,83.288,83.193,3.69383402]
[1772432538210,2.43548571,83.229,83.193,3.69383402]
[1772432538396,2.43548571,83.229,83.175,2.61428473]
[1772432538397,11.29566715,83.2,83.163,2.61428473]
[1772432538700,2.43548571,83.199,83.135,2.61428473]
[1772432538937,2.43548571,83.226,83.161,2.61428473]
[1772432539082,2.43548571,83.199,83.151,2.61428473]
[1772432540190,2.43548571,83.199,83.13,0.1]
[1772432540386,12.02515662,83.159,83.13,0.1]
[1772432540597,12.02515662,83.159,83.13,14.00995188]
[1772432540800,12.02515662,83.159,83.131,2.61428473]
[1772432540991,2.43548571,83.158,83.13,0.1]
[1772432541901,11.29566715,83.15,83.13,0.1]
[1772432542201,2.43548571,83.158,83.13,0.1]
[1772432542399,2.43548571,83.169,83.14,11.29566715]
[1772432542695,2.43548571,83.169,83.131,2.61428473]
[1772432542696,42.08349364,83.168,83.131,2.61428473]
[1772432543290,42.08349364,83.168,83.13,11.39566715]
[1772432543291,2.43548571,83.159,83.13,0.1]
[1772432543908,11.29566715,83.16,83.131,2.61428473]
[1772432544209,48.03369051,83.275,83.13,11.39566715]
[1772432544210,2.43548571,83.223,83.153,3.69383402]
[1772432544388,2.43548571,83.223,83.21,11.29566715]
[1772432544589,2.43548571,83.223,83.2,11.29566715]
[1772432544789,11.29566715,83.25,83.21,11.29566715]
[1772432544991,11.29566715,83.25,83.187,12.02110906]
[1772432544992,11.29566715,83.25,83.221,2.61428473]
[1772432545200,12.01085781,83.258,83.191,2.61428473]
[1772432545201,11.29566715,83.23,83.191,2.61428473]
[1772432545513,11.29566715,83.24,83.2,11.29566715]
[1772432545698,42.03800234,83.258,83.2,11.29566715]
[1772432545699,11.29566715,83.23,83.2,11.29566715]
[1772432546291,42.03800234,83.258,83.21,11.29566715]
[1772432546499,11.29566715,83.27,83.231,2.61428473]
[1772432546696,11.29566715,83.28,83.241,2.61428473]
[1772432546994,11.29566715,83.27,83.241,2.61428473]
[1772432547303,42.00722523,83.319,83.201,42.06673655]
[1772432547304,11.29566715,83.25,83.217,2.61428473]
[1772432547506,1.90816625,83.258,83.217,2.61428473]
[1772432547507,11.29566715,83.24,83.217,2.61428473]
[1772432547710,11.29566715,83.24,83.205,2.61428473]
[1772432547898,11.29566715,83.23,83.195,2.61428473]
[1772432548093,11.29566715,83.28,83.187,2.61428473]
[1772432548094,11.29566715,83.24,83.187,2.61428473]
[1772432548298,11.29566715,83.23,83.191,2.61428473]
[1772432548499,12.01523722,83.228,83.191,2.61428473]
[1772432548795,12.01523722,83.228,83.16,11.29566715]
[1772432548796,11.29566715,83.24,83.201,2.61428473]
[1772432549211,11.29566715,83.22,83.19,2.61428473]
[1772432549416,11.29566715,83.23,83.192,2.61428473]
[1772432549913,11.29566715,83.24,83.201,2.61428473]
[1772432550300,11.29566715,83.24,83.2,11.29566715]
[1772432550494,11.29566715,83.24,83.202,12.01894185]
[1772432550495,12.01359939,83.239,83.202,12.01894185]
[1772432550812,12.01359939,83.239,83.203,2.61428473]
[1772432551010,1.90871905,83.276,83.221,2.61428473]
[1772432551215,1.90871905,83.276,83.202,42.06629648]
[1772432551216,11.29566715,83.24,83.21,2.61428473]
[1772432551419,11.29566715,83.24,83.16,11.29566715]
[1772432551420,11.29566715,83.22,83.187,2.61428473]
[1772432551597,1.90888471,83.239,83.2,11.29566715]
[1772432551792,11.29566715,83.23,83.191,2.61428473]
[1772432552016,11.29566715,83.22,83.191,2.61428473]
[1772432552613,11.32962768,83.22,83.191,2.61428473]
[1772432553211,11.32962768,83.23,83.192,2.61428473]
[1772432553620,12.01374372,83.238,83.201,2.61428473]
[1772432553939,12.01374372,83.238,83.191,12.0204446]
[1772432553940,11.32962768,83.22,83.191,2.61428473]
[1772432554108,11.32962768,83.23,83.2,11.32962768]
[1772432554419,11.32962768,83.22,83.191,2.61428473]
[1772432554598,11.32962768,83.23,83.193,2.61428473]
[1772432554910,11.32962768,83.23,83.201,2.61428473]
[1772432555313,12.01388805,83.237,83.201,2.61428473]
[1772432555510,12.01388805,83.237,83.21,2.61428473]
[1772432555928,12.01388805,83.237,83.211,2.61428473]
[1772432556823,41.35995567,83.25,83.213,2.61428473]
[1772432557125,11.32962768,83.24,83.213,2.61428473]
[1772432559020,42.04759787,83.239,83.201,2.61428473]
[1772432559228,11.32962768,83.23,83.201,2.61428473]
[1772432560005,11.32962768,83.23,83.19,25.9645165]
[1772432560208,11.32962768,83.21,83.178,2.61428473]
[1772432560406,11.32962768,83.21,83.181,2.61428473]
[1772432560632,102.11559484,83.239,83.178,12.02240977]
[1772432560633,11.32962768,83.22,83.191,2.61428473]
[1772432563223,12.01547593,83.226,83.201,2.61428473]
[1772432563613,11.32962768,83.22,83.19,2.61428473]
[1772432563918,12.01547593,83.226,83.191,2.61428473]
[1772432564120,11.32962768,83.25,83.221,2.61428473]
[1772432564326,1.91073028,83.259,83.221,2.61428473]
[1772432564912,1.91087284,83.239,83.198,2.61428473]
[1772432565119,12.01359939,83.239,83.202,12.01894185]
[1772432565308,11.32962768,83.28,83.202,12.01894185]
[1772432565309,12.0129783,83.244,83.221,2.61428473]
[1772432565719,12.0129783,83.244,83.211,2.61428473]
[1772432565916,11.32962768,83.24,83.211,2.61428473]
[1772432567312,30.03219451,83.244,83.211,2.61428473]
[1772432568014,30.03219451,83.244,83.221,2.62975031]
[1772432568416,30.03219451,83.244,83.212,2.62975031]
[1772432568941,11.32962768,83.24,83.212,2.62975031]
[1772432569527,12.01359939,83.239,83.212,2.62975031]
[1772432570236,12.01359939,83.239,83.214,2.62975031]
[1772432570833,42.04759787,83.239,83.21,11.32962768]
[1772432571037,42.04759787,83.239,83.211,2.62975031]
[1772432571233,42.04759787,83.239,83.166,3.69383402]
[1772432571234,2.58650271,83.238,83.17,3.69383402]
[1772432571440,42.04759787,83.239,83.2,11.32962768]
[1772432571625,42.04759787,83.239,83.197,12.0196062]
[1772432571817,42.04759787,83.239,83.2,11.32962768]
[1772432572015,2.58650271,83.248,83.22,11.32962768]
[1772432573332,12.01244489,83.247,83.22,13.95937799]
[1772432574234,12.01244489,83.247,83.22,2.62975031]
[1772432574432,60.04927723,83.265,83.22,2.62975031]
[1772432574433,12.01100207,83.257,83.221,2.62975031]
[1772432574609,14.59750478,83.257,83.222,2.62975031]
[1772432575334,11.32962768,83.25,83.222,2.62975031]
[1772432576936,2.58650271,83.239,83.201,2.62975031]
[1772432577235,14.60024643,83.238,83.201,2.62975031]
[1772432577543,2.58650271,83.237,83.203,2.62975031]
[1772432577735,2.58650271,83.237,83.21,11.32962768]
[1772432578036,2.58650271,83.237,83.203,2.62975031]
[1772432578235,2.58650271,83.229,83.194,2.62975031]
[1772432578434,42.04810302,83.238,83.184,2.62975031]
[1772432578435,2.58650271,83.219,83.184,2.62975031]
[1772432578827,11.32962768,83.21,83.184,2.62975031]
[1772432579028,2.58650271,83.219,83.184,2.62975031]
[1772432579226,42.05820855,83.218,83.184,2.62975031]
[1772432579423,11.32962768,83.21,83.184,2.62975031]
[1772432580022,2.58650271,83.217,83.184,2.62975031]
[1772432580334,2.58650271,83.217,83.19,11.32962768]
[1772432580535,12.01663101,83.218,83.19,11.32962768]
[1772432580536,11.32962768,83.22,83.191,2.62975031]
[1772432580827,12.01258919,83.246,83.21,11.32962768]
[1772432581032,2.58650271,83.229,83.191,2.62975031]
[1772432581544,11.32962768,83.23,83.201,2.62975031]
[1772432581545,12.01518719,83.228,83.201,2.62975031]
[1772432584124,11.32962768,83.23,83.201,2.62975031]
[1772432584329,2.58650271,83.229,83.201,2.62975031]
[1772432585644,12.01518719,83.228,83.201,2.62975031]
[1772432586236,12.01460741,83.233,83.201,2.62975031]
[1772432586425,2.58650271,83.232,83.201,2.62975031]
[1772432586626,2.58650271,83.219,83.19,11.32962768]
[1772432586826,2.58650271,83.219,83.191,2.62975031]
[1772432587031,12.01460741,83.233,83.201,2.62975031]
[1772432587237,12.01460741,83.233,83.127,10.91704451]
[1772432587238,12.01460741,83.233,83.211,2.62975031]
[1772432587551,12.01359939,83.239,83.211,2.62975031]
[1772432588928,2.58650271,83.238,83.211,2.62975031]
[1772432589128,2.58650271,83.229,83.201,2.62975031]
[1772432589748,12.01518719,83.228,83.201,2.62975031]
[1772432589949,2.58650271,83.227,83.192,2.62975031]
[1772432590271,2.58650271,83.219,83.18,2.62975031]
[1772432590431,2.58650271,83.219,83.18,11.32962768]
[1772432590629,2.58650271,83.219,83.181,2.62975031]
[1772432590944,2.58650271,83.219,83.182,2.62975031]
[1772432591248,2.58650271,83.227,83.191,2.62975031]
[1772432591754,30.03431483,83.239,83.181,42.0769166]
[1772432591755,2.58650271,83.236,83.201,2.62975031]
[1772432591950,30.03431483,83.239,83.201,2.62975031]
[1772432591951,13.91613039,83.23,83.201,2.62975031]
[1772432592334,2.58650271,83.229,83.201,2.62975031]
[1772432592844,12.01359041,83.24,83.211,2.62975031]
[1772432593047,23.34321809,83.24,83.211,2.62975031]
[1772432594050,42.04254705,83.249,83.211,2.62975031]
[1772432594236,42.04254705,83.249,83.221,2.38610372]
[1772432594426,44.46437207,83.249,83.221,2.38610372]
[1772432594851,2.42182502,83.248,83.221,2.38610372]
[1772432595927,12.01244489,83.247,83.221,2.38610372]
[1772432596448,12.01244489,83.247,83.231,2.38610372]
[1772432597032,12.01085781,83.258,83.231,2.38610372]
[1772432597241,2.60507951,83.257,83.231,2.38610372]
[1772432597427,2.60507951,83.239,83.202,2.52366101]
[1772432597632,11.32962768,83.23,83.202,2.52366101]
[1772432597831,2.60507951,83.231,83.202,2.52366101]
[1772432598032,44.65267738,83.239,83.202,2.52366101]
[1772432598240,2.60507951,83.238,83.202,2.52366101]
[1772432599536,12.01359939,83.239,83.211,2.52366101]
[1772432600447,42.04759787,83.239,83.211,2.52366101]
[1772432600654,44.65267738,83.239,83.211,2.52366101]
[1772432600953,2.60507951,83.229,83.201,2.52366101]
[1772432601339,2.60507951,83.229,83.193,2.52366101]
[1772432601733,42.04759787,83.239,83.201,2.52366101]
[1772432601959,44.65267738,83.239,83.201,2.52366101]
[1772432602166,12.01793075,83.209,83.178,2.52366101]
[1772432602341,2.60507951,83.208,83.178,2.52366101]
[1772432602654,12.01793075,83.209,83.179,12.02226523]
[1772432602856,12.01793075,83.209,83.181,2.52366101]
[1772432603945,2.60507951,83.199,83.16,11.32962768]
[1772432604151,11.32962768,83.19,83.16,11.32962768]
[1772432604552,2.60507951,83.197,83.161,12.02486742]
[1772432605473,12.01951969,83.198,83.13,3.79383402]
[1772432605474,2.60507951,83.169,83.13,0.1]
[1772432605759,72.11711818,83.198,83.13,0.1]
[1772432605760,11.32962768,83.15,83.13,0.1]
[1772432606060,2.60507951,83.184,83.141,2.52366101]
[1772432606356,12.02168712,83.183,83.16,11.32962768]
[1772432606560,12.02168712,83.183,83.151,2.52366101]
[1772432606857,2.60507951,83.179,83.151,2.52366101]
[1772432607037,11.32962768,83.16,83.13,11.42962768]
[1772432607243,42.07590492,83.183,83.13,11.42962768]
[1772432607244,2.60507951,83.149,83.13,0.1]
[1772432607440,2.60507951,83.149,83.064,2.52366101]
[1772432607643,2.60507951,83.149,82.897,589.32042993]
[1772432607644,2.60507951,83.063,83.0,12.04806448]
[1772432607850,2.60507951,83.063,83.02,11.32962768]
[1772432608055,2.60507951,83.063,83.011,12.04659623]
[1772432608056,11.32962768,83.05,83.01,12.19962768]
[1772432608270,11.32962768,83.03,82.998,13.1816861]
[1772432608464,2.60507951,83.019,82.97,11.32962768]
[1772432608636,2.60507951,83.019,82.98,11.32962768]
[1772432608962,11.32962768,83.02,82.98,11.32962768]
[1772432609167,2.60507951,83.019,82.98,11.32962768]
[1772432609660,2.60507951,83.019,82.99,11.32962768]
[1772432609846,2.60507951,83.019,82.98,11.32962768]
[1772432610052,2.60507951,83.019,82.972,1.24503176]
[1772432610251,2.60507951,83.009,82.97,11.32962768]
[1772432610449,12.04558047,83.018,82.936,60.28738208]
[1772432610450,11.32962768,82.99,82.951,42.19358416]
[1772432610651,12.03876482,83.065,82.981,2.52366101]
[1772432610855,11.32962768,83.02,82.982,2.52366101]
[1772432611168,11.32962768,83.02,82.96,11.32962768]
[1772432611169,5.36086188,83.064,82.99,11.32962768]
[1772432611346,11.32962768,83.03,82.99,13.85328869]
[1772432611664,5.36086188,83.064,82.98,2.52366101]
[1772432611665,11.32962768,83.02,82.98,2.52366101]
[1772432611967,11.32962768,83.02,82.98,11.32962768]
[1772432612266,11.32962768,83.02,82.925,6.28702196]
[1772432612267,11.32962768,82.99,82.938,42.20001649]
[1772432612460,11.32962768,82.99,82.95,11.32962768]
[1772432612663,2.60507951,83.001,82.97,11.32962768]
[1772432612856,2.60507951,82.999,82.96,11.32962768]
[1772432614166,2.60507951,83.035,82.98,11.32962768]
[1772432614352,2.60507951,83.019,82.981,12.05095142]
[1772432614665,2.60507951,83.018,82.981,12.05095142]
[1772432614864,2.60507951,83.009,82.975,12.05174266]
[1772432615069,2.60507951,83.009,82.98,11.38653669]
[1772432615367,2.60507951,82.999,82.96,11.38653669]
[1772432615752,42.15902383,83.019,82.948,2.52366101]
[1772432615753,2.60507951,82.989,82.95,11.38653669]
[1772432616151,42.15902383,83.019,82.947,30.13956014]
[1772432616152,11.38653669,83.0,82.97,11.38653669]
[1772432616355,11.38653669,83.0,82.971,12.05240385]
[1772432616557,2.60507951,82.999,82.971,12.05240385]
[1772432617371,60.21474492,83.037,82.971,12.05240385]
[1772432617372,2.60507951,83.009,82.98,11.38653669]
[1772432617669,13.9916162,83.03,82.991,2.52366101]
[1772432617848,2.60507951,83.029,83.0,11.38653669]
[1772432618048,2.60507951,83.029,82.991,2.52366101]
[1772432618355,2.60507951,83.029,83.001,12.04804761]
[1772432618853,2.60507951,83.04,83.01,11.38653669]
[1772432619465,2.60507951,83.04,83.02,11.38653669]
[1772432619668,2.60507951,83.049,83.02,11.38653669]
[1772432620179,2.60507951,83.069,83.04,11.38653669]
[1772432620546,2.60507951,83.069,83.039,12.04240616]
[1772432620751,2.60507951,83.069,83.04,11.38653669]
[1772432620974,2.60507951,83.081,83.05,11.38653669]
[1772432621372,2.60507951,83.079,83.04,11.38653669]
[1772432621568,2.60507951,83.079,83.041,2.52366101]
[1772432621768,2.60507951,83.09,83.06,11.38653669]
[1772432621959,2.60507951,83.101,83.07,11.38653669]
[1772432622155,11.38653669,83.16,83.041,2.52366101]
[1772432622156,2.60507951,83.079,83.041,2.52366101]
[1772432622576,2.60507951,83.079,83.042,12.04209917]
[1772432622790,2.60507951,83.049,82.952,2.52366101]
[1772432622954,11.38653669,83.01,82.971,2.52366101]
[1772432623273,2.60507951,83.009,82.97,11.38653669]
[1772432623663,2.60507951,83.009,82.98,11.38653669]
[1772432624176,2.60507951,83.009,82.97,11.38653669]
[1772432624762,2.60507951,83.009,82.971,12.05240385]
[1772432625359,11.38653669,83.02,82.981,2.52366101]
[1772432625587,2.60507951,83.019,82.981,2.52366101]
[1772432625881,2.60507951,83.009,82.971,12.05240385]
[1772432626385,2.60507951,83.009,82.95,30.13831831]
[1772432626386,2.60507951,82.999,82.958,12.05429253]
[1772432626559,2.60507951,82.989,82.958,12.05429253]
[1772432626754,2.60507951,82.968,82.931,2.52366101]
[1772432626974,13.9916162,82.98,82.95,11.38653669]
[1772432627174,11.38653669,82.99,82.95,11.38653669]
[1772432627364,11.38653669,82.99,82.92,11.38653669]
[1772432627365,2.4735871,82.989,82.951,2.44855016]
[1772432627563,11.38653669,83.0,82.97,11.38653669]
[1772432628067,2.4735871,83.03,82.98,11.38653669]
[1772432628275,2.4735871,83.009,82.97,13.83508685]
[1772432628457,2.4735871,83.009,82.97,11.38653669]
[1772432628659,11.38653669,83.0,82.97,11.38653669]
[1772432628857,2.4735871,82.999,82.97,11.38653669]
[1772432629079,2.4735871,82.999,82.971,12.05240385]
[1772432629672,2.4735871,83.021,82.99,11.38653669]
[1772432629973,2.4735871,83.021,82.986,2.44855016]
[1772432629974,2.4735871,83.021,82.975,2.44855016]
[1772432630178,2.4735871,83.009,82.965,12.05319231]
[1772432630367,2.4735871,83.009,82.97,11.38653669]
[1772432630554,12.04519054,83.021,82.965,12.05319231]
[1772432630555,2.4735871,83.019,82.98,11.38653669]
[1772432630757,2.4735871,83.019,82.99,11.38653669]
[1772432631157,2.4735871,83.019,82.969,42.18443031]
[1772432631158,11.38653669,83.03,83.0,11.38653669]
[1772432631371,2.4735871,83.03,83.01,11.38653669]
[1772432631771,2.4735871,83.041,83.02,11.38653669]
[1772432632260,2.4735871,83.041,83.01,11.38653669]
[1772432632460,2.4735871,83.049,83.0,11.38653669]
[1772432632660,2.4735871,83.039,83.01,11.38653669]
[1772432633071,2.4735871,83.037,83.0,11.38653669]
[1772432633269,2.4735871,83.037,83.01,11.38653669]
[1772432633580,2.4735871,83.037,83.0,11.38653669]
[1772432634280,2.4735871,83.037,83.01,11.38653669]
[1772432634578,2.4735871,83.039,83.01,11.38653669]
[1772432635866,2.4735871,83.06,83.03,11.38653669]
[1772432636067,2.4735871,83.071,83.04,11.38653669]
[1772432637065,2.4735871,83.071,83.05,11.38653669]
[1772432637887,2.4735871,83.071,83.046,12.04139592]
[1772432638072,2.4735871,83.07,83.041,12.04215082]
[1772432638577,2.4735871,83.069,83.04,11.38653669]
[1772432639181,2.4735871,83.069,83.041,12.04224419]
[1772432639684,2.4735871,83.049,83.009,12.04688648]
[1772432639984,2.4735871,83.047,83.02,11.38653669]
[1772432640186,2.4735871,83.059,83.02,11.38653669]
[1772432640484,11.38653669,83.05,83.02,11.38653669]
[1772432640671,42.13364792,83.069,83.02,11.38653669]
[1772432640672,2.4735871,83.051,83.02,11.38653669]
[1772432640987,2.4735871,83.061,83.03,11.38653669]
[1772432641382,2.4735871,83.059,83.03,11.38653669]
[1772432641582,2.4735871,83.059,83.02,11.38653669]
[1772432641774,2.4735871,83.059,83.03,11.38653669]
[1772432642482,14.51336653,83.058,83.03,11.38653669]
[1772432642788,14.51336653,83.058,83.024,12.04459207]
[1772432642789,2.4735871,83.057,83.024,12.04459207]
[1772432642988,2.4735871,83.057,83.02,11.38653669]
[1772432643169,2.4735871,83.049,83.01,11.38653669]
[1772432643488,2.4735871,83.049,83.02,11.38653669]
[1772432644007,2.4735871,83.049,83.01,11.38653669]
[1772432644289,2.4735871,83.059,83.03,11.38653669]
[1772432644675,30.09577855,83.069,83.03,11.38653669]
[1772432644969,7.6,83.159,83.03,11.38653669]
[1772432644970,2.4735871,83.068,83.04,11.38653669]
[1772432645395,2.4735871,83.068,83.03,13.83508685]
[1772432645885,2.4735871,83.067,83.04,11.38653669]
[1772432646674,2.4735871,83.067,83.041,12.04224419]
[1772432647695,2.4735871,83.079,83.041,12.04224419]
[1772432648069,2.4735871,83.085,83.05,11.38653669]
[1772432648378,2.4735871,83.094,83.07,11.38653669]
[1772432648966,11.58653669,83.1,83.071,2.44855016]
[1772432648967,12.03383915,83.099,83.071,2.44855016]
[1772432649167,2.4735871,83.098,83.061,2.44855016]
[1772432649369,2.4735871,83.098,83.07,11.38653669]
[1772432649573,0.2,83.1,83.08,11.38653669]
[1772432649982,12.03165448,83.115,83.08,11.38653669]
[1772432650180,2.4735871,83.114,83.08,11.38653669]
[1772432650388,2.4735871,83.114,83.09,11.38653669]
[1772432650794,2.4735871,83.128,83.09,11.38653669]
[1772432650987,2.4735871,83.128,83.1,11.38653669]
[1772432651288,2.4735871,83.126,83.091,42.1224922]
[1772432651466,2.4735871,83.126,83.1,11.38653669]
[1772432651669,2.4735871,83.126,83.091,12.03499777]
[1772432651888,2.4735871,83.126,83.1,11.38653669]
[1772432652073,3.69383402,83.18,83.091,12.03499777]
[1772432652074,2.4735871,83.159,83.121,2.44855016]
[1772432652277,45.54614676,83.24,83.14,11.38653669]
[1772432652278,12.02371075,83.169,83.14,11.38653669]
[1772432652495,2.4735871,83.168,83.15,11.38653669]
[1772432653187,12.02190899,83.182,83.16,11.38653669]
[1772432653388,12.02255525,83.177,83.15,11.38653669]
[1772432653591,2.4735871,83.184,83.16,11.38653669]
[1772432653887,14.4937954,83.194,83.16,11.38653669]
[1772432654093,2.4735871,83.193,83.16,11.38653669]
[1772432654686,2.37543419,83.179,83.14,11.38653669]
[1772432655081,12.02240977,83.178,83.14,11.38653669]
[1772432655273,2.37543419,83.177,83.14,11.38653669]
[1772432655897,2.37543419,83.169,83.14,11.38653669]
[1772432656589,2.37543419,83.169,83.141,12.02776007]
[1772432656790,2.37543419,83.169,83.14,11.38653669]
[1772432657172,12.02385532,83.168,83.14,11.38653669]
[1772432657379,2.37543419,83.169,83.141,12.02776007]
[1772432657574,2.49552364,83.177,83.14,11.38653669]
[1772432658886,2.49552364,83.169,83.135,12.02852778]
[1772432659085,2.49552364,83.169,83.131,12.02920691]
[1772432659477,2.49552364,83.167,83.14,11.38653669]
[1772432659678,2.49552364,83.178,83.15,11.38653669]
[1772432659879,12.02255431,83.177,83.15,11.38653669]
[1772432661398,12.02169198,83.183,83.16,11.38653669]
[1772432661696,2.49552364,83.187,83.16,11.38653669]
[1772432662097,2.49552364,83.187,83.161,12.02486742]
[1772432662300,12.01922933,83.201,83.171,2.34693318]
[1772432662500,12.01922933,83.201,83.129,60.14678058]
[1772432662501,2.49552364,83.189,83.15,2.34693318]
[1772432662701,2.49552364,83.189,83.151,12.02631357]
[1772432663017,2.49552364,83.189,83.16,11.38653669]
[1772432663586,12.02096456,83.188,83.16,11.38653669]
[1772432663786,2.49552364,83.187,83.15,11.38653669]
[1772432664382,42.07337596,83.188,83.14,11.38653669]
[1772432664383,2.49552364,83.179,83.14,11.38653669]
[1772432664588,2.49552364,83.179,83.15,11.38653669]
[1772432665183,42.07337596,83.188,83.151,2.34693318]
[1772432665504,2.49552364,83.187,83.151,2.34693318]
[1772432666704,12.02125357,83.186,83.152,12.02616894]
[1772432666911,2.49552364,83.185,83.152,12.02616894]
[1772432667085,2.49552364,83.185,83.15,11.38653669]
[1772432667290,2.49552364,83.179,83.151,12.02631357]
[1772432668685,2.49552364,83.179,83.15,11.38653669]
[1772432668889,2.49552364,83.177,83.142,12.0276154]
[1772432669099,2.49552364,83.177,83.15,11.38653669]
[1772432669496,2.49552364,83.177,83.143,2.34693318]
[1772432669807,2.49552364,83.177,83.15,11.38653669]
[1772432670009,11.38653669,83.2,83.15,11.38653669]